fUST/lending_fUST_20260612
["ID","MTS","AMOUNT","RATE_DAILY","PERIOD"]
[424878338,1781230240000,-500.0,0.00035616,18]
[424878333,1781230240000,-500.52868792,0.00035616,18]
[424878339,1781230240000,-500.0,0.00035616,18]
[424878341,1781230240000,-156.2026415,0.00035616,18]
[424878342,1781230240000,-484.25973173,0.00035616,18]
[424878344,1781230240000,-517.96,0.00035616,18]
[424878343,1781230240000,-500.0,0.00035616,18]
[424878348,1781230240000,-512.17391339,0.00035616,18]
[424878346,1781230240000,-530.13204963,0.00035616,18]
[424878340,1781230240000,-500.0,0.00035616,18]
[424878350,1781230240000,-524.97068244,0.00035616,18]
[424878345,1781230240000,-500.0,0.00035616,18]
[424878347,1781230240000,-500.0,0.00035616,18]
[424878349,1781230240000,-533.69313852,0.00035616,18]
[424878352,1781230240000,-764.85,0.00035616,18]
[424878351,1781230240000,-500.0,0.00035616,18]
[424878354,1781230240000,-500.0,0.00035616,18]
[424878353,1781230240000,-500.0,0.00035616,18]
[424878356,1781230240000,-500.0,0.00035616,18]
[424878355,1781230240000,-501.21839749,0.00035616,18]
[424878357,1781230240000,-500.0,0.00035616,18]
[424878358,1781230240000,-565.45,0.00035616,18]
[424878285,1781230240000,-500.0,0.00035616,18]
[424878360,1781230240000,-500.42539231,0.00035616,18]
[424878332,1781230240000,-527.99749965,0.00035616,18]
[424878327,1781230240000,-500.0,0.00035616,18]
[424878359,1781230240000,-500.0,0.00035616,18]
[424878328,1781230240000,-500.0,0.00035616,18]
[424878331,1781230240000,-523.90851345,0.00035616,18]
[424878296,1781230240000,-508.21330926,0.00035616,18]
[424878298,1781230240000,-500.0,0.00035616,18]
[424878310,1781230240000,-500.0,0.00035616,18]
[424878297,1781230240000,-522.47,0.00035616,18]
[424878307,1781230240000,-525.922907,0.00035616,18]
[424878306,1781230240000,-506.65,0.00035616,18]
[424878299,1781230240000,-528.65401301,0.00035616,18]
[424878309,1781230240000,-500.0,0.00035616,18]
[424878308,1781230240000,-500.0,0.00035616,18]
[424878300,1781230240000,-987.2,0.00035616,18]
[424878302,1781230240000,-500.0,0.00035616,18]
[424878311,1781230240000,-500.0,0.00035616,18]
[424878304,1781230240000,-500.38035581,0.00035616,18]
[424878312,1781230240000,-500.0,0.00035616,18]
[424878305,1781230240000,-501.28844751,0.00035616,18]
[424878313,1781230240000,-500.0,0.00035616,18]
[424878314,1781230240000,-500.0,0.00035616,18]
[424878337,1781230240000,-500.0,0.00035616,18]
[424878324,1781230240000,-500.0,0.00035616,18]
[424878323,1781230240000,-521.91918399,0.00035616,18]
[424878321,1781230240000,-518.02958058,0.00035616,18]
[424878322,1781230240000,-890.94,0.00035616,18]
[424878334,1781230240000,-519.56812117,0.00035616,18]
[424878320,1781230240000,-500.0,0.00035616,18]
[424878318,1781230240000,-500.0,0.00035616,18]
[424878316,1781230240000,-500.0,0.00035616,18]
[424878317,1781230240000,-500.0,0.00035616,18]
[424878315,1781230240000,-500.0,0.00035616,18]
[424878319,1781230240000,-915.25,0.00035616,18]
[424878411,1781230241000,-500.0,0.00035616,18]
[424878410,1781230241000,-500.0,0.00035616,18]
[424878409,1781230241000,-651.99,0.00035616,18]
[424878402,1781230241000,-500.0,0.00035616,18]
[424878401,1781230241000,-501.32180836,0.00035616,18]
[424878397,1781230241000,-500.0,0.00035616,18]
[424878399,1781230241000,-500.0,0.00035616,18]
[424878396,1781230241000,-1770.62,0.00035616,18]
[424878393,1781230241000,-500.23214255,0.00035616,18]
[424878421,1781230241000,-500.0,0.00035616,18]
[424878398,1781230241000,-534.86478113,0.00035616,18]
[424878392,1781230241000,-518.65272551,0.00035616,18]
[424878389,1781230241000,-500.0,0.00035616,18]
[424878407,1781230241000,-500.0,0.00035616,18]
[424878403,1781230241000,-500.46706898,0.00035616,18]
[424878404,1781230241000,-500.0,0.00035616,18]
[424878405,1781230241000,-502.5955229,0.00035616,18]
[424878406,1781230241000,-500.0,0.00035616,18]
[424878408,1781230241000,-500.0,0.00035616,18]
[424878412,1781230241000,-500.0,0.00035616,18]
[424878416,1781230241000,-500.0,0.00035616,18]
[424878420,1781230241000,-500.0,0.00035616,18]
[424878418,1781230241000,-610.08,0.00035616,6]
[424878415,1781230241000,-500.0,0.00035616,18]
[424878417,1781230241000,-448.95497872,0.00035616,18]
[424878419,1781230241000,-500.0,0.00035616,18]
[424878394,1781230241000,-500.0,0.00035616,18]
[424878400,1781230241000,-500.0,0.00035616,18]
[424878395,1781230241000,-500.0,0.00035616,18]
[424878374,1781230241000,-500.0,0.00035616,18]
[424878390,1781230241000,-501.66055624,0.00035616,18]
[424878422,1781230241000,-500.0,0.00035616,18]
[424878364,1781230241000,-621.24,0.00035616,18]
[424878363,1781230241000,-677.73,0.00035616,18]
[424878362,1781230241000,-812.4,0.00035616,18]
[424878365,1781230241000,-500.0,0.00035616,18]
[424878366,1781230241000,-500.0,0.00035616,18]
[424878361,1781230241000,-500.0,0.00035616,18]
[424878367,1781230241000,-500.0,0.00035616,18]
[424878370,1781230241000,-500.0,0.00035616,18]
[424878372,1781230241000,-501.10751654,0.00035616,18]
[424878368,1781230241000,-500.0,0.00035616,18]
[424878371,1781230241000,-1623.86,0.00035616,18]
[424878369,1781230241000,-500.0,0.00035616,18]
[424878391,1781230241000,-500.0,0.00035616,18]
[424878375,1781230241000,-500.0,0.00035616,18]
[424878387,1781230241000,-520.56162052,0.00035616,18]
[424878377,1781230241000,-1096.13,0.00035616,18]
[424878386,1781230241000,-500.0,0.00035616,18]
[424878379,1781230241000,-500.0,0.00035616,18]
[424878376,1781230241000,-500.0,0.00035616,18]
[424878380,1781230241000,-500.0,0.00035616,18]
[424878378,1781230241000,-500.0,0.00035616,18]
[424878382,1781230241000,-500.0,0.00035616,18]
[424878383,1781230241000,-543.9120658,0.00035616,18]
[424878381,1781230241000,-500.0,0.00035616,18]
[424878384,1781230241000,-501.01012985,0.00035616,18]
[424878385,1781230241000,-1007.77,0.00035616,18]
[424878388,1781230241000,-155.136007,0.00035616,18]
[424878373,1781230241000,-500.0,0.00035616,18]
[424878413,1781230241000,-500.84169694,0.00035616,18]
[424878467,1781230241000,-510.19891377,0.00035616,18]
[424878426,1781230241000,-500.0,0.00035616,18]
[424878462,1781230241000,-523.25242613,0.00035616,18]
[424878456,1781230241000,-500.0,0.00035616,18]
[424878463,1781230241000,-549.53752537,0.00035616,18]
[424878454,1781230241000,-500.0,0.00035616,18]
[424878461,1781230241000,-500.0,0.00035616,18]
[424878457,1781230241000,-501.6277052,0.00035616,18]
[424878459,1781230241000,-1011.96,0.00035616,18]
[424878452,1781230241000,-500.0,0.00035616,18]
[424878465,1781230241000,-573.13633759,0.00035616,18]
[424878468,1781230241000,-500.0,0.00035616,18]
[424878472,1781230241000,-501.4240359,0.00035616,18]
[424878469,1781230241000,-521.64273842,0.00035616,18]
[424878470,1781230241000,-500.0,0.00035616,18]
[424878473,1781230241000,-500.0,0.00035616,18]
[424878466,1781230241000,-500.0,0.00035616,18]
[424878475,1781230241000,-500.0,0.00035616,18]
[424878474,1781230241000,-501.0671093,0.00035616,18]
[424878476,1781230241000,-500.0,0.00035616,18]
[424878478,1781230241000,-500.0,0.00035616,18]
[424878477,1781230241000,-500.0,0.00035616,18]
[424878480,1781230241000,-342.6162636,0.00035616,18]
[424878479,1781230241000,-612.46611427,0.00035616,18]
[424878482,1781230241000,-500.0,0.00035616,18]
[424878481,1781230241000,-500.84644381,0.00035616,18]
[424878483,1781230241000,-500.0,0.00035616,18]
[424878484,1781230241000,-500.0,0.00035616,18]
[424878425,1781230241000,-195.7354926,0.00035616,18]
[424878464,1781230241000,-500.0,0.00035616,18]
[424878455,1781230241000,-500.0,0.00035616,18]
[424878471,1781230241000,-537.8095821,0.00035616,18]
[424878458,1781230241000,-507.63094156,0.00035616,18]
[424878423,1781230241000,-336.14697637,0.00035616,18]
[424878460,1781230241000,-633.36,0.00035616,18]
[424878424,1781230241000,-500.0,0.00035616,18]
[424878428,1781230241000,-629.89,0.00035616,18]
[424878436,1781230241000,-500.0,0.00035616,18]
[424878437,1781230241000,-500.0,0.00035616,18]
[424878439,1781230241000,-500.0,0.00035616,18]
[424878438,1781230241000,-500.0,0.00035616,18]
[424878427,1781230241000,-500.0,0.00035616,18]
[424878432,1781230241000,-500.0,0.00035616,18]
[424878430,1781230241000,-1019.34,0.00035616,18]
[424878434,1781230241000,-500.4106222,0.00035616,18]
[424878433,1781230241000,-582.58,0.00035616,18]
[424878431,1781230241000,-500.40823001,0.00035616,18]
[424878429,1781230241000,-680.58,0.00035616,18]
[424878451,1781230241000,-500.0,0.00035616,18]
[424878453,1781230241000,-500.0,0.00035616,18]
[424878435,1781230241000,-491.14574801,0.00035616,18]
[424878449,1781230241000,-500.0,0.00035616,18]
[424878447,1781230241000,-528.65909525,0.00035616,18]
[424878450,1781230241000,-500.0,0.00035616,18]
[424878445,1781230241000,-500.0,0.00035616,18]
[424878448,1781230241000,-501.54972237,0.00035616,18]
[424878444,1781230241000,-519.12049856,0.00035616,18]
[424878443,1781230241000,-500.0,0.00035616,18]
[424878441,1781230241000,-500.0,0.00035616,18]
[424878440,1781230241000,-500.41902164,0.00035616,18]
[424878442,1781230241000,-781.56,0.00035616,18]
[424878446,1781230241000,-520.89170624,0.00035616,18]
[424878521,1781230242000,-500.43824978,0.00035616,18]
[424878527,1781230242000,-525.74180643,0.00035616,18]
[424878529,1781230242000,-3008.06,0.00035616,18]
[424878518,1781230242000,-500.0,0.00035616,18]
[424878523,1781230242000,-521.39,0.00035616,18]
[424878519,1781230242000,-500.80515982,0.00035616,18]
[424878524,1781230242000,-713.4,0.00035616,18]
[424878525,1781230242000,-1839.78,0.00035616,18]
[424878522,1781230242000,-500.0,0.00035616,18]
[424878526,1781230242000,-521.1,0.00035616,2]
[424878517,1781230242000,-500.0,0.00035616,18]
[424878542,1781230242000,-500.0,0.00035616,18]
[424878528,1781230242000,-500.0,0.00035616,18]
[424878541,1781230242000,-500.41029148,0.00035616,18]
[424878546,1781230242000,-561.77494451,0.00035616,18]
[424878540,1781230242000,-2075.37,0.00035616,18]
[424878539,1781230242000,-500.0,0.00035616,18]
[424878530,1781230242000,-533.32114538,0.00035616,18]
[424878532,1781230242000,-1422.6,0.00035616,18]
[424878533,1781230242000,-451.32481418,0.00035616,18]
[424878534,1781230242000,-500.9488966,0.00035616,18]
[424878535,1781230242000,-500.0,0.00035616,18]
[424878537,1781230242000,-500.0,0.00035616,18]
[424878536,1781230242000,-455.29147829,0.00035616,18]
[424878538,1781230242000,-500.0,0.00035616,18]
[424878551,1781230242000,-500.0,0.00035616,18]
[424878550,1781230242000,-500.6239932,0.00035616,18]
[424878520,1781230242000,-500.0,0.00035616,18]
[424878531,1781230242000,-500.0,0.00035616,18]
[424878511,1781230242000,-511.78581161,0.00035616,18]
[424878487,1781230242000,-500.24,0.00035616,18]
[424878510,1781230242000,-500.0,0.00035616,18]
[424878490,1781230242000,-664.69,0.00035616,18]
[424878549,1781230242000,-500.0,0.00035616,18]
[424878485,1781230242000,-500.0,0.00035616,2]
[424878489,1781230242000,-500.0,0.00035616,18]
[424878488,1781230242000,-890.65,0.00035616,18]
[424878486,1781230242000,-500.0,0.00035616,18]
[424878493,1781230242000,-500.0,0.00035616,18]
[424878491,1781230242000,-500.47658615,0.00035616,18]
[424878494,1781230242000,-500.0,0.00035616,18]
[424878495,1781230242000,-500.0,0.00035616,18]
[424878498,1781230242000,-3988.38,0.00035616,18]
[424878492,1781230242000,-501.00006212,0.00035616,18]
[424878501,1781230242000,-455.40034374,0.00035616,18]
[424878497,1781230242000,-500.0,0.00035616,18]
[424878500,1781230242000,-2383.29,0.00035616,18]
[424878499,1781230242000,-784.8,0.00035616,18]
[424878496,1781230242000,-537.0,0.00035616,18]
[424878502,1781230242000,-511.88153647,0.00035616,18]
[424878503,1781230242000,-1496.97,0.00035616,18]
[424878505,1781230242000,-500.0,0.00035616,18]
[424878514,1781230242000,-511.63633013,0.00035616,18]
[424878504,1781230242000,-500.0,0.00035616,18]
[424878513,1781230242000,-500.0,0.00035616,18]
[424878506,1781230242000,-500.0,0.00035616,18]
[424878516,1781230242000,-500.53702565,0.00035616,18]
[424878507,1781230242000,-500.0,0.00035616,18]
[424878515,1781230242000,-1151.19,0.00035616,18]
[424878508,1781230242000,-500.0,0.00035616,18]
[424878509,1781230242000,-22498.22,0.00035616,18]
[424878512,1781230242000,-500.0,0.00035616,18]
[424878552,1781230242000,-500.0,0.00035616,18]
[424878557,1781230242000,-500.0,0.00035616,18]
[424878543,1781230242000,-500.0,0.00035616,18]
[424878583,1781230242000,-500.0,0.00035616,18]
[424878589,1781230242000,-500.0,0.00035616,18]
[424878591,1781230242000,-164.83084,0.00035616,7]
[424878587,1781230242000,-500.0,0.00035616,18]
[424878593,1781230242000,-164.83084,0.00035616,7]
[424878592,1781230242000,-4230.87,0.00035616,18]
[424878588,1781230242000,-500.0,0.00035616,18]
[424878585,1781230242000,-500.0,0.00035616,18]
[424878586,1781230242000,-847.82,0.00035616,18]
[424878590,1781230242000,-164.83084,0.00035616,7]
[424878594,1781230242000,-501.1168289,0.00035616,18]
[424878596,1781230242000,-164.83084,0.00035616,7]
[424878598,1781230242000,-164.83084,0.00035616,7]
[424878584,1781230242000,-3475.75,0.00035616,18]
[424878602,1781230242000,-164.83084,0.00035616,7]
[424878544,1781230242000,-500.0,0.00035616,2]
[424878604,1781230242000,-500.0,0.00035616,18]
[424878601,1781230242000,-500.0,0.00035616,18]
[424878605,1781230242000,-164.83084,0.00035616,7]
[424878599,1781230242000,-164.83084,0.00035616,7]
[424878606,1781230242000,-530.37,0.00035616,18]
[424878603,1781230242000,-164.83084,0.00035616,7]
[424878600,1781230242000,-164.83084,0.00035616,7]
[424878608,1781230242000,-465.98756674,0.00035616,18]
[424878607,1781230242000,-1091.39,0.00035616,18]
[424878609,1781230242000,-1064.79,0.00035616,18]
[424878610,1781230242000,-500.0,0.00035616,18]
[424878611,1781230242000,-519.6868489,0.00035616,18]
[424878595,1781230242000,-164.83084,0.00035616,7]
[424878581,1781230242000,-500.0,0.00035616,18]
[424878597,1781230242000,-164.83084,0.00035616,7]
[424878580,1781230242000,-3197.1,0.00035616,18]
[424878582,1781230242000,-500.20976631,0.00035616,18]
[424878555,1781230242000,-522.69756064,0.00035616,18]
[424878554,1781230242000,-500.0,0.00035616,18]
[424878556,1781230242000,-500.0,0.00035616,18]
[424878548,1781230242000,-952.99,0.00035616,18]
[424878545,1781230242000,-521.05,0.00035616,18]
[424878547,1781230242000,-543.96547225,0.00035616,18]
[424878558,1781230242000,-592.54,0.00035616,18]
[424878568,1781230242000,-500.0,0.00035616,18]
[424878567,1781230242000,-2002.71,0.00035616,11]
[424878569,1781230242000,-500.26022607,0.00035616,18]
[424878563,1781230242000,-500.0,0.00035616,18]
[424878561,1781230242000,-500.0,0.00035616,18]
[424878560,1781230242000,-500.0,0.00035616,18]
[424878553,1781230242000,-2719.89,0.00035616,18]
[424878559,1781230242000,-500.0,0.00035616,18]
[424878579,1781230242000,-500.0,0.00035616,2]
[424878562,1781230242000,-500.0,0.00035616,18]
[424878575,1781230242000,-500.0,0.00035616,18]
[424878578,1781230242000,-1401.16,0.00035616,18]
[424878577,1781230242000,-690.97,0.00035616,18]
[424878571,1781230242000,-2841.95,0.00035616,18]
[424878572,1781230242000,-514.47582406,0.00035616,18]
[424878576,1781230242000,-540.06420158,0.00035616,18]
[424878574,1781230242000,-500.0,0.00035616,18]
[424878573,1781230242000,-275.99728983,0.00035616,18]
[424878570,1781230242000,-500.0,0.00035616,18]
[424878565,1781230242000,-500.0,0.00035616,18]
[424878566,1781230242000,-500.0,0.00035616,18]
[424878564,1781230242000,-1434.59,0.00035616,18]
[424878636,1781230243000,-300.0,0.00035616,120]
[424878635,1781230243000,-300.0,0.00035616,120]
[424878645,1781230243000,-500.0,0.0003589,18]
[424878646,1781230243000,-500.0,0.0003589,18]
[424878644,1781230243000,-204.37780789,0.0003589,18]
[424878633,1781230243000,-300.0,0.00035616,120]
[424878637,1781230243000,-300.0,0.00035616,120]
[424878642,1781230243000,-500.0,0.0003589,18]
[424878640,1781230243000,-200.46546412,0.00035889,10]
[424878616,1781230243000,-500.0,0.00035616,18]
[424878641,1781230243000,-1090.6352,0.0003589,18]
[424878643,1781230243000,-500.0,0.0003589,18]
[424878638,1781230243000,-202.20657,0.00035616,120]
[424878647,1781230243000,-512.70939955,0.0003589,18]
[424878634,1781230243000,-300.0,0.00035616,120]
[424878650,1781230243000,-522.47,0.0003589,18]
[424878623,1781230243000,-300.0,0.00035616,120]
[424878614,1781230243000,-501.03188714,0.00035616,18]
[424878627,1781230243000,-300.0,0.00035616,120]
[424878617,1781230243000,-500.0,0.00035616,18]
[424878618,1781230243000,-3596.99,0.00035616,18]
[424878619,1781230243000,-1825.33,0.00035616,18]
[424878613,1781230243000,-1944.63,0.00035616,18]
[424878612,1781230243000,-501.38246501,0.00035616,18]
[424878615,1781230243000,-500.0,0.00035616,18]
[424878620,1781230243000,-500.0,0.00035616,18]
[424878632,1781230243000,-300.0,0.00035616,120]
[424878625,1781230243000,-300.0,0.00035616,120]
[424878624,1781230243000,-300.0,0.00035616,120]
[424878621,1781230243000,-500.0,0.00035616,18]
[424878631,1781230243000,-300.0,0.00035616,120]
[424878630,1781230243000,-300.0,0.00035616,120]
[424878626,1781230243000,-300.0,0.00035616,120]
[424878629,1781230243000,-300.0,0.00035616,120]
[424878622,1781230243000,-300.0,0.00035616,120]
[424878628,1781230243000,-300.0,0.00035616,120]
[424878652,1781230243000,-987.2,0.0003589,18]
[424878639,1781230243000,-160.0,0.000357,120]
[424878659,1781230243000,-556.87599224,0.0003589,18]
[424878674,1781230243000,-500.0,0.0003589,18]
[424878676,1781230243000,-500.0,0.0003589,18]
[424878677,1781230243000,-500.0,0.0003589,18]
[424878679,1781230243000,-517.96,0.0003589,18]
[424878684,1781230243000,-500.0,0.0003589,18]
[424878678,1781230243000,-500.0,0.0003589,18]
[424878683,1781230243000,-764.85,0.0003589,18]
[424878670,1781230243000,-500.0,0.0003589,18]
[424878675,1781230243000,-500.0,0.0003589,18]
[424878681,1781230243000,-500.0,0.0003589,18]
[424878680,1781230243000,-500.0,0.0003589,18]
[424878685,1781230243000,-500.0,0.0003589,18]
[424878686,1781230243000,-500.0,0.0003589,18]
[424878687,1781230243000,-45.5213335,0.0003589,18]
[424878688,1781230243000,-2088.35,0.0001089,2]
[424878651,1781230243000,-500.0,0.0003589,18]
[424878682,1781230243000,-500.0,0.0003589,18]
[424878667,1781230243000,-500.0,0.0003589,18]
[424878654,1781230243000,-506.65,0.0003589,18]
[424878669,1781230243000,-500.0,0.0003589,18]
[424878655,1781230243000,-500.0,0.0003589,18]
[424878656,1781230243000,-500.0,0.0003589,18]
[424878649,1781230243000,-500.0,0.0003589,18]
[424878648,1781230243000,-856.69,0.0003589,18]
[424878658,1781230243000,-500.0,0.0003589,18]
[424878653,1781230243000,-500.0,0.0003589,18]
[424878657,1781230243000,-500.0,0.0003589,18]
[424878661,1781230243000,-500.0,0.0003589,18]
[424878668,1781230243000,-890.94,0.0003589,18]
[424878672,1781230243000,-500.0,0.0003589,18]
[424878665,1781230243000,-500.0,0.0003589,18]
[424878666,1781230243000,-915.25,0.0003589,18]
[424878664,1781230243000,-500.0,0.0003589,18]
[424878671,1781230243000,-500.0,0.0003589,18]
[424878662,1781230243000,-500.0,0.0003589,18]
[424878673,1781230243000,-500.0,0.0003589,18]
[424878660,1781230243000,-500.0,0.0003589,18]
[424878663,1781230243000,-500.0,0.0003589,18]
[424878695,1781230247000,-2911.65,0.0001089,2]
[424878696,1781230247000,-934.20255418,0.000228,2]
[424878703,1781230248000,-2312.98,0.0002395,4]
[424878704,1781230248000,-209.1,0.00025659,2]
[424878708,1781230248000,-180.46068733,0.00035616,18]
[424878707,1781230248000,-500.0,0.00035616,18]
[424878706,1781230248000,-417.15472785,0.00035262,2]
[424878705,1781230248000,-2312.97,0.0003461,7]
[424878702,1781230248000,-67.33458482,0.000228,2]
[424878815,1781231433000,-3153.0,0.00015296,9]
[424878895,1781231438000,-300.0,0.00019178,2]
[424878891,1781231438000,-776.1266109,0.00015925,2]
[424878966,1781231439000,-960.17014988,0.00023115,120]
[424878970,1781231439000,-300.0,0.00023534,10]
[424878964,1781231439000,-194.16044157,0.00023095,2]
[424878972,1781231439000,-246.56,0.00023562,2]
[424878982,1781231439000,-417.15472785,0.0002373,2]
[424878974,1781231439000,-330.51471997,0.000237,2]
[424878977,1781231439000,-160.0,0.00023728,2]
[424878988,1781231439000,-308.93,0.00024049,2]
[424878979,1781231439000,-160.0,0.00023728,2]
[424878984,1781231439000,-246.56,0.00023836,2]
[424878986,1781231439000,-330.51471997,0.000239,2]
[424878975,1781231439000,-318.35394462,0.000237,2]
[424878980,1781231439000,-160.0,0.0002373,2]
[424878993,1781231439000,-259.54135387,0.00024227,7]
[424879003,1781231439000,-151.0,0.00024658,6]
[424878990,1781231439000,-246.56,0.0002411,2]
[424878997,1781231439000,-246.56,0.00024384,2]
[424878999,1781231439000,-330.51471997,0.000244,2]
[424879001,1781231439000,-330.51471997,0.000246,2]
[424879010,1781231439000,-1504.823891,0.00024658,2]
[424879005,1781231439000,-246.56,0.00024658,2]
[424879006,1781231439000,-1500.0,0.00024658,2]
[424879012,1781231439000,-169.082,0.00024658,7]
[424879020,1781231439000,-160.32,0.00025115,30]
[424879016,1781231439000,-308.93,0.00024682,2]
[424879008,1781231439000,-1500.0,0.00024658,2]
[424879014,1781231439000,-152.08150171,0.00024658,7]
[424878968,1781231439000,-300.0,0.00023534,10]
[424878995,1781231439000,-152.00989649,0.00024249,7]
[424878962,1781231439000,-159.38004576,0.00023095,2]
[424878931,1781231439000,-162.14388959,0.00022725,2]
[424878959,1781231439000,-152.00989649,0.00023095,7]
[424878905,1781231439000,-160.62082657,0.00021825,2]
[424878907,1781231439000,-162.14388959,0.00021825,2]
[424878910,1781231439000,-160.62082657,0.00021925,2]
[424878908,1781231439000,-207.63308309,0.00021903,2]
[424878912,1781231439000,-162.14388959,0.00021925,2]
[424878914,1781231439000,-152.00989649,0.0002194,7]
[424878916,1781231439000,-207.63308309,0.00022003,2]
[424878918,1781231439000,-162.14388959,0.00022025,2]
[424878920,1781231439000,-162.14388959,0.00022125,2]
[424878922,1781231439000,-162.14388959,0.00022225,2]
[424878924,1781231439000,-162.14388959,0.00022325,2]
[424878935,1781231439000,-162.14388959,0.00022825,2]
[424878937,1781231439000,-160.75010804,0.00023073,2]
[424878957,1781231439000,-203.93979956,0.00023073,2]
[424878926,1781231439000,-162.14388959,0.00022425,2]
[424879018,1781231439000,-246.56,0.00024932,2]
[424878941,1781231439000,-157.26193246,0.00023073,2]
[424878939,1781231439000,-160.65834751,0.00023073,2]
[424878933,1781231439000,-934.202554,0.000228,2]
[424878929,1781231439000,-162.14388959,0.00022625,2]
[424878943,1781231439000,-177.29871795,0.00023073,2]
[424878945,1781231439000,-163.70733771,0.00023073,2]
[424878947,1781231439000,-176.13097058,0.00023073,2]
[424878949,1781231439000,-188.77408395,0.00023073,2]
[424878951,1781231439000,-210.66412541,0.00023073,2]
[424878953,1781231439000,-197.18402953,0.00023073,2]
[424878960,1781231439000,-175.9030834,0.00023095,2]
[424878955,1781231439000,-157.05094709,0.00023073,2]
[424878928,1781231439000,-162.14388959,0.00022525,2]
[424879032,1781231439000,-246.32221,0.00026158,2]
[424878992,1781231439000,-330.51471997,0.000242,2]
[424879036,1781231439000,-246.56,0.00026575,2]
[424879091,1781231439000,-322.63938072,0.00034381,2]
[424879088,1781231439000,-160.0,0.00032949,3]
[424879080,1781231439000,-152.0,0.00032241,30]
[424879093,1781231439000,-207.63308309,0.0003461,7]
[424879095,1781231439000,-486.43166878,0.00034642,7]
[424879097,1781231439000,-152.0,0.00034649,7]
[424879100,1781231439000,-152.0,0.00034711,7]
[424879111,1781231439000,-500.0,0.0003485,7]
[424879098,1781231439000,-152.0,0.00034649,7]
[424879113,1781231439000,-500.0,0.0003485,7]
[424879106,1781231439000,-300.0,0.00034795,37]
[424879109,1781231439000,-500.0,0.0003485,7]
[424879102,1781231439000,-152.0,0.00034786,7]
[424879104,1781231439000,-152.0,0.00034786,7]
[424879115,1781231439000,-248.98856774,0.0003485,7]
[424879117,1781231439000,-500.0,0.0003485,7]
[424879119,1781231439000,-265.15811298,0.00034851,7]
[424879130,1781231439000,-161.34887541,0.00035162,2]
[424879120,1781231439000,-500.0,0.00034851,7]
[424879134,1781231439000,-508.39139751,0.000353,2]
[424879132,1781231439000,-282.43966528,0.000353,2]
[424879123,1781231439000,-500.0,0.00034851,7]
[424879128,1781231439000,-491.50051439,0.00034851,7]
[424879137,1781231439000,-243.14495044,0.000353,2]
[424879136,1781231439000,-903.8069289,0.000353,2]
[424879126,1781231439000,-500.0,0.00034851,7]
[424879124,1781231439000,-500.0,0.00034851,7]
[424879139,1781231439000,-910.57087576,0.00035416,2]
[424879034,1781231439000,-246.56,0.00026301,2]
[424879075,1781231439000,-6649.036128,0.00032144,2]
[424879089,1781231439000,-186.0,0.00034034,2]
[424879108,1781231439000,-500.0,0.0003485,7]
[424879078,1781231439000,-152.0,0.00032194,2]
[424879026,1781231439000,-246.56,0.00025753,2]
[424879077,1781231439000,-502.65098037,0.00032144,2]
[424879038,1781231439000,-308.93,0.00026581,2]
[424879023,1781231439000,-308.93,0.00025315,2]
[424879030,1781231439000,-246.56,0.00026027,2]
[424879025,1781231439000,-246.56,0.00025479,2]